bitfinex-derivatives/quotes_BTCF0:USTF0_20250313
["timestamp","ask_amount","ask_price","bid_price","bid_amount"]
[1741855433876,0.1227,82623.0,82622.0,0.701646]
[1741855435372,0.00181616,82632.0,82625.0,0.0605127]
[1741855435566,0.00181616,82632.0,82630.0,0.1210189]
[1741855435773,0.00181616,82632.0,82631.0,0.3688175]
[1741855435974,0.00181616,82632.0,82631.0,0.6388175]
[1741855436371,0.21381615,82636.0,82635.0,0.1210116]
[1741855436578,0.21381615,82636.0,82635.0,0.3710116]
[1741855437270,0.21381615,82636.0,82635.0,0.6188116]
[1741855437676,0.33482635,82636.0,82635.0,0.6188116]
[1741855438070,0.33482635,82636.0,82635.0,0.4978]
[1741855438276,0.33482635,82636.0,82635.0,0.6188116]
[1741855438666,0.21381615,82636.0,82635.0,0.6188116]
[1741855439776,0.33482635,82636.0,82635.0,0.6188116]
[1741855439973,0.1210102,82636.0,82635.0,0.4905116]
[1741855440370,0.1210102,82636.0,82635.0,0.6105116]
[1741855440678,0.2389102,82636.0,82635.0,0.6105116]
[1741855441178,0.1179,82636.0,82635.0,0.6105116]
[1741855441477,0.2389102,82636.0,82635.0,0.6105116]
[1741855441977,0.2389102,82636.0,82635.0,0.4905116]
[1741855443070,0.2389102,82636.0,82635.0,0.3695]
[1741855443271,0.2389102,82636.0,82635.0,0.4905116]
[1741855445981,0.2389102,82636.0,82635.0,0.6178116]
[1741855447480,0.2389102,82636.0,82635.0,0.25]
[1741855447786,0.1210277,82625.0,82624.0,0.1210271]
[1741855447980,0.1210277,82625.0,82624.0,0.2810271]
[1741855448176,0.3553277,82625.0,82624.0,0.2810271]
[1741855448486,0.2386263,82625.0,82624.0,0.2810271]
[1741855448781,0.3553263,82625.0,82624.0,0.4090271]
[1741855448984,0.3553263,82625.0,82624.0,0.2810271]
[1741855450788,0.1176,82625.0,82624.0,0.2810271]
[1741855451082,0.1224,82639.0,82638.0,0.1210072]
[1741855451279,0.1814956,82646.0,82643.0,0.0604992]
[1741855451476,0.1814956,82646.0,82645.0,0.120997]
[1741855451677,0.060498,82646.0,82645.0,0.120997]
[1741855451876,0.060498,82646.0,82645.0,0.246797]
[1741855452474,0.179198,82646.0,82645.0,0.246797]
[1741855453176,0.1815057,82642.0,82641.0,0.1210027]
[1741855453377,0.1815057,82642.0,82641.0,0.01]
[1741855453778,0.1210131,82634.0,82633.0,0.3689198]
[1741855454084,0.1210131,82634.0,82633.0,0.6089198]
[1741855455676,0.2421131,82634.0,82633.0,0.6089198]
[1741855456883,0.2421131,82634.0,82633.0,0.3669]
[1741855457090,0.2421131,82634.0,82633.0,0.4879146]
[1741855457789,0.2421131,82634.0,82633.0,0.3669]
[1741855458090,0.2421131,82634.0,82633.0,0.24]
[1741855458586,0.2421131,82634.0,82633.0,0.3610146]
[1741855458989,0.2421131,82634.0,82633.0,0.24]
[1741855459183,0.1211,82634.0,82631.0,0.2383167]
[1741855459384,0.121016,82632.0,82631.0,0.2483167]
[1741855460789,0.1211,82634.0,82633.0,0.1210146]
[1741855461094,0.1211,82634.0,82633.0,0.4010146]
[1741855461283,0.1211,82634.0,82633.0,0.6461146]
[1741855462195,0.1210051,82640.0,82639.0,0.1210058]
[1741855462493,0.1210051,82640.0,82639.0,0.1310058]
[1741855462686,0.2498051,82640.0,82639.0,0.1310058]
[1741855463085,0.2498051,82640.0,82639.0,0.2525058]
[1741855463285,0.2498051,82640.0,82639.0,0.3809058]
[1741855464496,0.2498051,82640.0,82639.0,0.2525058]
[1741855467396,0.1288,82640.0,82639.0,0.2525058]
[1741855468190,0.2498043,82640.0,82639.0,0.2525058]
[1741855468787,0.1288,82640.0,82639.0,0.2525058]
[1741855468993,0.1288,82640.0,82639.0,0.3714058]
[1741855469992,0.10691087,82642.0,82641.0,0.1210028]
[1741855470185,0.10691087,82642.0,82641.0,0.3910028]
[1741855470488,0.10691087,82642.0,82641.0,0.6352028]
[1741855470998,0.22791227,82642.0,82641.0,0.6352028]
[1741855471292,0.47361227,82642.0,82641.0,0.5142]
[1741855471497,0.47361227,82642.0,82641.0,0.6352028]
[1741855471986,0.22601087,82642.0,82641.0,0.6352028]
[1741855472188,0.2401014,82642.0,82641.0,0.6352028]
[1741855472594,0.3679014,82642.0,82641.0,0.6352028]
[1741855473495,0.2469,82642.0,82641.0,0.6352028]
[1741855473696,0.1191,82642.0,82641.0,0.6352028]
[1741855474102,0.2401014,82642.0,82641.0,0.6352028]
[1741855474698,0.3672014,82642.0,82641.0,0.3953]
[1741855475201,0.3672014,82642.0,82641.0,0.5163028]
[1741855475697,0.3672014,82642.0,82641.0,0.6404028]
[1741855476397,0.1191,82642.0,82641.0,0.6404028]
[1741855476694,0.2401014,82642.0,82641.0,0.6404028]
[1741855477093,0.1191,82642.0,82641.0,0.6404028]
[1741855477293,0.2401014,82642.0,82641.0,0.6404028]
[1741855479102,0.10691087,82653.0,82650.0,0.0604941]
[1741855479295,0.1196,82652.0,82651.0,0.4384823]
[1741855479496,0.2405867,82652.0,82651.0,0.5773823]
[1741855480097,0.10691087,82653.0,82652.0,0.1209867]
[1741855480299,0.10691087,82653.0,82652.0,0.6579867]
[1741855480503,0.13092,82677.0,82652.0,0.627]
[1741855480705,0.1261,82667.0,82665.0,0.1209677]
[1741855480908,0.2470652,82667.0,82665.0,0.2009677]
[1741855481105,0.1261,82667.0,82665.0,0.2009677]
[1741855481505,0.1261,82667.0,82665.0,0.4458677]
[1741855482108,0.2470657,82667.0,82665.0,0.4458677]
[1741855482307,0.1261,82667.0,82665.0,0.4458677]
[1741855482504,0.33478235,82666.0,82665.0,0.3249]
[1741855482703,0.45358235,82666.0,82665.0,0.1966]
[1741855482907,0.2397662,82666.0,82665.0,0.08]
[1741855484814,0.2397662,82666.0,82665.0,0.2009677]
[1741855485113,0.2397662,82666.0,82665.0,0.08]
[1741855486013,0.120975,82660.0,82659.0,0.1209752]
[1741855486609,0.1209765,82659.0,82658.0,0.1227]
[1741855486912,0.2515765,82659.0,82658.0,0.253678]
[1741855487214,0.3812765,82659.0,82658.0,0.253678]
[1741855495722,0.3812765,82659.0,82658.0,0.303678]
[1741855497824,0.2603,82659.0,82658.0,0.303678]
[1741855498015,8.844e-05,82666.0,82658.0,0.303678]
[1741855498016,8.844e-05,82666.0,82665.0,0.1209677]
[1741855498318,8.844e-05,82666.0,82665.0,0.3709677]
[1741855498513,8.844e-05,82666.0,82665.0,0.6164677]
[1741855499428,0.2464,82670.0,82669.0,0.1209619]
[1741855499623,0.2464,82670.0,82669.0,0.3609619]
[1741855500021,0.1263,82670.0,82669.0,0.3609619]
[1741855500328,0.2472604,82670.0,82669.0,0.3609619]
[1741855500522,0.1263,82670.0,82669.0,0.3609619]
[1741855501227,0.2472604,82670.0,82669.0,0.3609619]
[1741855501418,0.1263,82670.0,82669.0,0.3609619]
[1741855502019,0.2457406,82684.0,82683.0,0.1209414]
[1741855502211,0.1209406,82684.0,82683.0,0.1209414]
[1741855502521,0.1209472,82679.0,82678.0,0.1243]
[1741855502824,0.1209472,82679.0,82678.0,0.01]
[1741855503412,0.2486472,82679.0,82678.0,0.2552487]
[1741855503624,0.2486472,82679.0,82678.0,0.01]
[1741855504020,0.3734472,82679.0,82678.0,0.01]
[1741855505025,0.3734472,82679.0,82678.0,0.1309487]
[1741855505929,0.1308,82696.0,82678.0,0.01]
[1741855506220,0.1814005,82693.0,82692.0,0.1209238]
[1741855506627,0.1814155,82685.0,82684.0,0.0604696]
[1741855506830,0.1814155,82685.0,82684.0,0.0704696]
[1741855507717,0.1814155,82685.0,82684.0,0.01]
[1741855509425,0.0604708,82685.0,82675.0,0.0001815]
[1741855509629,0.1209516,82676.0,82675.0,0.1311346]
[1741855509927,0.1209516,82676.0,82675.0,0.2610346]
[1741855510323,0.2475,82677.0,82675.0,0.1400815]
[1741855510528,0.1209417,82684.0,82683.0,0.1209414]
[1741855510826,0.1782681,82687.0,82686.0,0.120937]
[1741855511022,0.1178,82687.0,82686.0,0.120937]
[1741855511329,0.2387355,82687.0,82686.0,0.130937]
[1741855512723,0.2387355,82687.0,82686.0,0.01]
[1741855513028,0.0604743,82679.0,82676.0,0.1306]
[1741855513230,0.1209495,82678.0,82677.0,0.1209487]
[1741855513429,0.2395495,82678.0,82677.0,0.1309487]
[1741855513621,0.2395495,82678.0,82677.0,0.3827487]
[1741855514537,0.2395495,82678.0,82677.0,0.1406]
[1741855514721,0.3651495,82678.0,82677.0,0.1406]
[1741855515126,0.2395495,82678.0,82677.0,0.2615502]
[1741855515323,0.2395495,82678.0,82677.0,0.3884502]
[1741855515933,0.1209516,82676.0,82675.0,0.0001815]
[1741855516730,0.2479516,82676.0,82675.0,0.0001815]
[1741855517724,0.1209662,82666.0,82665.0,0.21704736]
[1741855517926,0.2517262,82666.0,82665.0,0.21704736]
[1741855520831,0.2517262,82666.0,82665.0,0.14359266]
[1741855521037,0.120978,82658.0,82657.0,0.0001815]
[1741855521238,0.120978,82658.0,82657.0,0.1211609]
[1741855522131,0.120978,82658.0,82657.0,0.3626609]
[1741855523737,0.120978,82658.0,82657.0,0.2416815]
[1741855524040,0.120978,82658.0,82657.0,0.0001815]
[1741855524532,0.120978,82658.0,82657.0,0.1211609]
[1741855524928,0.120978,82658.0,82657.0,0.3697609]
[1741855525237,0.120978,82658.0,82657.0,0.1207815]
[1741855525623,0.120978,82658.0,82657.0,0.2417609]
[1741855525828,0.120978,82658.0,82657.0,0.0001815]
[1741855527738,0.119,82659.0,82657.0,0.1211609]
[1741855527933,0.2399765,82659.0,82658.0,0.375278]
[1741855528133,0.119,82659.0,82658.0,0.625278]
[1741855528332,0.0848756,102280.0,82658.0,0.5043]
[1741855528333,0.2392415,82672.0,82658.0,0.5043]
[1741855528633,0.2392415,82672.0,82671.0,0.1209589]
[1741855528634,0.1787628,82672.0,82671.0,0.1209589]
[1741855528836,0.00181522,82676.0,82675.0,0.1209531]
[1741855529032,0.1267,82689.0,82675.0,0.1209531]
[1741855529033,0.181412,82687.0,82686.0,0.0604678]
[1741855530340,0.181412,82687.0,82686.0,0.5632678]
[1741855530532,0.0604663,82689.0,82688.0,0.1209341]
[1741855531535,0.24897241,82690.0,82689.0,0.1209326]
[1741855531837,0.00181476,82697.0,82691.0,0.0604645]
[1741855532040,0.00181476,82697.0,82696.0,0.1209224]
[1741855532341,0.13076,82714.0,82699.0,0.120918]
[1741855532533,0.2490992,82713.0,82712.0,0.120899]
[1741855532728,0.1208924,82724.0,82714.0,0.1208958]
[1741855533037,0.060444,82721.0,82716.0,0.0604465]
[1741855533237,0.1208917,82717.0,82716.0,0.01]
[1741855533539,0.1209077,82706.0,82705.0,0.1291]
[1741855533734,0.1209077,82706.0,82705.0,0.1791]
[1741855534938,0.1209077,82706.0,82705.0,0.3000092]
[1741855535138,0.0604528,82708.0,82707.0,0.1209063]
[1741855535440,0.0604384,82728.0,82727.0,0.1208756]
[1741855535633,0.00108,82730.0,82727.0,0.1208756]
[1741855535634,0.2386756,82729.0,82728.0,0.1208756]
[1741855535833,0.1208756,82729.0,82728.0,0.6022756]
[1741855536139,0.06224969,82731.0,82730.0,0.1208727]
[1741855536325,0.13072,82744.0,82730.0,0.28]
[1741855536531,0.2417387,82735.0,82734.0,0.1208598]
[1741855536930,0.2417387,82735.0,82728.0,0.3622738]
[1741855536931,0.1208741,82729.0,82728.0,0.3622738]
[1741855537243,0.1208741,82729.0,82728.0,0.5014]
[1741855537538,0.1208741,82729.0,82728.0,0.6222756]
[1741855538641,0.1208741,82729.0,82728.0,0.5014]
[1741855539340,0.1208,82734.0,82728.0,0.5014]
[1741855539341,0.6039992,82780.0,82728.0,0.5014]
[1741855539537,0.1208741,82729.0,82728.0,0.5014]
[1741855539737,0.1208741,82729.0,82728.0,0.6222756]
[1741855539928,0.1384331,82750.0,82734.0,0.0604322]
[1741855540128,0.1208629,82740.0,82739.0,0.1208566]
[1741855542442,0.2445,82744.0,82713.0,0.0604487]
[1741855542637,0.1208741,82729.0,82728.0,0.2717717]
[1741855544238,0.1208741,82729.0,82728.0,0.3926446]
[1741855544741,0.1208741,82729.0,82728.0,0.2717717]
[1741855545325,0.2500741,82729.0,82728.0,0.2717717]
[1741855546341,0.1208741,82729.0,82728.0,0.2717717]
[1741855546543,0.1292,82736.0,82728.0,0.1509]
[1741855546842,0.1292,82736.0,82735.0,0.1208654]
[1741855547140,0.1292,82736.0,82735.0,0.1908654]
[1741855547534,0.2500639,82736.0,82735.0,0.1908654]
[1741855547734,0.2500639,82736.0,82735.0,0.1926]
[1741855547934,0.2500639,82736.0,82735.0,0.1226]
[1741855548841,0.2500639,82736.0,82735.0,0.2434654]
[1741855549233,0.2500639,82736.0,82735.0,0.3733654]
[1741855550142,0.2500639,82736.0,82735.0,0.6233654]
[1741855551139,0.2500639,82736.0,82735.0,0.5025]
[1741855551340,0.2500639,82736.0,82735.0,0.2434654]
[1741855553441,0.1292,82736.0,82735.0,0.2434654]
[1741855553640,0.1256,82742.0,82741.0,0.1208566]
[1741855553942,0.2464551,82742.0,82741.0,0.1308566]
[1741855554443,0.2464551,82742.0,82741.0,0.5027566]
[1741855557041,0.1256,82742.0,82741.0,0.5027566]
[1741855557344,0.2416885,82755.0,82754.0,0.0604166]
[1741855557543,0.0604214,82755.0,82754.0,0.0604166]
[1741855557848,0.1208435,82750.0,82749.0,0.3056611]
[1741855558143,0.1208435,82750.0,82749.0,0.5656611]
[1741855558345,0.2405435,82750.0,82749.0,0.3808449]
[1741855558744,0.3630435,82750.0,82749.0,0.5120449]
[1741855559045,0.3630435,82750.0,82749.0,0.3912]
[1741855559244,0.3630435,82750.0,82749.0,0.1312]
[1741855559544,0.3630435,82750.0,82749.0,0.2520449]
[1741855560238,0.3630435,82750.0,82749.0,0.1312]
[1741855560543,0.3630435,82750.0,82749.0,0.2520449]
[1741855561543,0.2422,82750.0,82749.0,0.2520449]
[1741855561735,0.2422,82750.0,82749.0,0.3904449]
[1741855561936,0.3630435,82750.0,82749.0,0.3904449]
[1741855562543,0.2422,82750.0,82749.0,0.3904449]
[1741855562845,0.3630435,82750.0,82749.0,0.1412]
[1741855563033,0.3630435,82750.0,82749.0,0.01]
[1741855563233,0.3630435,82750.0,82749.0,0.1308449]
[1741855563645,0.3631242,82750.0,82749.0,0.1308449]
[1741855564841,0.3631242,82750.0,82749.0,0.2618449]
[1741855566138,0.2406242,82750.0,82749.0,0.141]
[1741855566336,0.1209242,82750.0,82749.0,0.2618449]
[1741855566540,0.3753242,82750.0,82749.0,0.2618449]
[1741855566936,0.1208639,82736.0,82733.0,0.12104877]
[1741855567145,0.1208639,82736.0,82735.0,0.55697638]
[1741855567443,0.13307754,82736.0,82735.0,0.67784178]
[1741855567644,0.13307754,82736.0,82735.0,0.82245706]
[1741855567645,0.2544,82736.0,82735.0,0.82245706]
[1741855567849,0.1315,82736.0,82735.0,0.82245706]
[1741855568038,0.2523639,82736.0,82735.0,1.07275706]
[1741855568647,0.1315,82736.0,82735.0,1.07275706]
[1741855569146,0.2523639,82736.0,82735.0,0.43159166]
[1741855569547,0.4957639,82736.0,82735.0,0.43159166]
[1741855569949,0.4957639,82736.0,82735.0,0.55245706]
[1741855570543,0.4957639,82736.0,82735.0,0.43159166]
[1741855570737,0.4957639,82736.0,82735.0,0.55245706]
[1741855571044,0.4957639,82736.0,82735.0,0.43159166]
[1741855571238,0.4957639,82736.0,82735.0,0.55245706]
[1741855571846,0.1315,82736.0,82735.0,0.55245706]
[1741855572149,8.07e-05,82750.0,82749.0,0.1208449]
[1741855572348,8.07e-05,82750.0,82749.0,0.3908449]
[1741855572939,0.14190196,82753.0,82752.0,0.1208405]
[1741855573251,0.1267,82758.0,82757.0,0.1208332]
[1741855573446,0.17791736,82759.0,82758.0,0.1208318]
[1741855573648,0.29874766,82759.0,82758.0,0.1308318]
[1741855574751,0.54644766,82759.0,82758.0,0.1308318]
[1741855575954,0.3685303,82759.0,82758.0,0.1308318]
[1741855576647,0.3685303,82759.0,82758.0,0.01]
[1741855576947,0.1208332,82757.0,82756.0,0.48264079]
[1741855577251,0.1208332,82757.0,82756.0,0.39180669]
[1741855577446,0.1208332,82757.0,82756.0,0.36180669]
[1741855578047,0.1208332,82757.0,82756.0,0.48264139]
[1741855578563,0.3081158,82759.0,82756.0,0.48264139]
[1741855578564,0.1281,82759.0,82758.0,0.1208318]
[1741855578852,0.1281,82759.0,82758.0,0.3708318]
[1741855579147,0.1288,82769.0,82758.0,0.27]
[1741855579344,0.2496055,82776.0,82775.0,0.0604028]
[1741855579545,0.1288,82776.0,82770.0,0.1262]
[1741855579852,0.1208128,82771.0,82767.0,0.00018127]
[1741855580152,0.1208172,82768.0,82767.0,0.00018127]
[1741855580752,0.1208172,82768.0,82767.0,0.18140557]
[1741855581354,0.1208172,82768.0,82767.0,0.41140557]
[1741855581549,0.1208172,82768.0,82767.0,0.18140557]
[1741855581751,0.1208172,82768.0,82767.0,0.06058987]
[1741855582846,0.2405172,82768.0,82767.0,0.06058987]
[1741855583144,0.2405172,82768.0,82767.0,0.00018127]
[1741855584058,0.2405172,82768.0,82767.0,0.12099987]
[1741855584353,0.2405172,82768.0,82767.0,0.00018127]
[1741855585050,0.2405172,82768.0,82767.0,0.12099987]
[1741855585550,0.1208172,82768.0,82767.0,0.12099987]
[1741855585751,0.1208135,82773.0,82772.0,0.0604053]
[1741855586048,0.1208172,82768.0,82767.0,0.00018127]
[1741855587044,0.2486172,82768.0,82767.0,0.00018127]
[1741855588052,0.3693172,82768.0,82767.0,0.00018127]
[1741855588244,0.3693172,82768.0,82767.0,0.12099987]
[1741855588645,0.3693172,82768.0,82767.0,0.00018127]
[1741855589948,0.3693172,82768.0,82767.0,0.11918127]
[1741855590343,0.3693172,82768.0,82767.0,0.23999987]
[1741855590554,0.2485,82768.0,82767.0,0.23999987]
[1741855590752,0.0604039,82775.0,82767.0,0.24798127]
[1741855591053,0.3678086,82774.0,82773.0,0.1208099]
[1741855591352,0.1208099,82773.0,82772.0,0.1208084]
[1741855591554,0.1208099,82773.0,82767.0,0.18939047]
[1741855591555,0.1208172,82768.0,82767.0,0.00018127]
[1741855592150,0.4989172,82768.0,82767.0,0.12099987]
[1741855592351,0.4989172,82768.0,82767.0,0.00018127]
[1741855592550,0.3678172,82768.0,82767.0,0.12099987]
[1741855592859,0.3678172,82768.0,82767.0,0.00018127]
[1741855593759,0.3678172,82768.0,82767.0,0.05018127]
[1741855594953,0.1208435,82750.0,82749.0,0.2475449]
[1741855595155,0.1208435,82750.0,82749.0,0.5175449]
[1741855595861,0.3670435,82750.0,82749.0,0.27]
[1741855596163,0.37917977,82750.0,82749.0,0.3908449]
[1741855596361,0.3670435,82750.0,82749.0,0.3908449]
[1741855597268,0.2462,82750.0,82749.0,0.3908449]
[1741855597469,0.2499,82755.0,82754.0,0.1208376]
[1741855597768,0.12101242,82758.0,82757.0,0.1208332]
[1741855597959,0.12101242,82758.0,82757.0,0.3508332]
[1741855598466,0.00018052,82758.0,82757.0,0.3508332]
[1741855598763,0.00018052,82758.0,82757.0,0.3708332]
[1741855599370,0.1812158,82774.0,82773.0,0.1812112]
[1741855599570,0.181228,82769.0,82768.0,0.1208114]
[1741855599866,0.0604078,82770.0,82768.0,0.01]
[1741855600068,0.2403157,82769.0,82768.0,0.01]
[1741855600372,0.3704157,82769.0,82768.0,0.01]
[1741855601171,0.3704157,82769.0,82768.0,0.1308172]
[1741855601670,0.2496,82769.0,82768.0,0.1308172]
[1741855602071,0.3704157,82769.0,82768.0,0.1308172]
[1741855602864,0.2496,82769.0,82768.0,0.1308172]
[1741855603069,0.3704157,82769.0,82768.0,0.1308172]
[1741855605468,0.2496,82769.0,82768.0,0.1308172]
[1741855605869,0.1304,82777.0,82776.0,0.1208055]
[1741855606260,0.372804,82777.0,82776.0,0.1208055]
[1741855606663,0.1216,82777.0,82776.0,0.1808055]
[1741855606864,0.1216,82777.0,82776.0,0.1208055]
[1741855607065,0.242404,82777.0,82776.0,0.1208055]
[1741855607362,0.242404,82777.0,82776.0,0.2433055]
[1741855607960,0.0018129,82782.0,82781.0,0.1207982]
[1741855608274,0.120777,82796.0,82791.0,0.1207836]
[1741855608469,0.2466,82797.0,82791.0,0.4007836]
[1741855608668,0.1207781,82795.0,82791.0,0.4007836]
[1741855608862,0.3069875,82797.0,82791.0,0.4007836]
[1741855609064,0.29869956,82792.0,82791.0,0.5229836]
[1741855609471,0.29869956,82792.0,82791.0,0.6447836]
[1741855609676,0.29869956,82792.0,82791.0,0.524]
[1741855610067,0.1207938,82784.0,82771.0,0.0604057]
[1741855610266,0.2511538,82784.0,82783.0,0.12097657]
[1741855610571,0.0603937,82789.0,82786.0,0.0603951]
[1741855610771,0.2423847,82791.0,82790.0,0.1207851]
[1741855610973,0.120788,82788.0,82787.0,0.2429872]
[1741855611176,0.120788,82788.0,82787.0,0.2415748]
[1741855611983,0.1819921,82791.0,82787.0,0.1207872]
[1741855612179,0.1207859,82790.0,82789.0,0.1207851]
[1741855612380,0.1811635,82799.0,82798.0,0.1207719]
[1741855612680,0.368951,82799.0,82798.0,0.1207719]
[1741855612882,0.2481737,82799.0,82798.0,0.1207719]
[1741855613476,0.0603862,82799.0,82798.0,0.1207719]
[1741855613868,0.1207734,82798.0,82797.0,0.2523735]
[1741855614176,0.2471,82799.0,82797.0,0.2523735]
[1741855614374,0.1,82800.0,82799.0,0.1207719]
[1741855614575,0.1,82800.0,82799.0,0.3907719]
[1741855614776,0.1,82800.0,82799.0,0.5224719]
[1741855614975,0.2207705,82800.0,82799.0,0.5224719]
[1741855615176,0.1,82800.0,82799.0,0.5224719]
[1741855615370,0.2207705,82800.0,82799.0,0.5224719]
[1741855615979,0.1,82800.0,82794.0,0.120779]
[1741855616176,0.181163,82797.0,82796.0,0.1317]
[1741855616377,0.181163,82797.0,82796.0,0.2524763]
[1741855616581,0.430963,82797.0,82796.0,0.2524763]
[1741855617278,0.430963,82797.0,82796.0,0.1317]
[1741855617484,0.1207807,82793.0,82792.0,0.1212]
[1741855618181,0.1207938,82784.0,82783.0,0.00018127]
[1741855619182,0.3635938,82784.0,82783.0,0.00018127]
[1741855619572,0.3635938,82784.0,82783.0,0.12097657]
[1741855619776,0.1811824,82790.0,82789.0,0.181174]
[1741855620476,0.1207779,82795.0,82794.0,0.0603889]
[1741855620673,0.1811679,82795.0,82794.0,0.0603889]
[1741855620868,0.13028,82799.0,82791.0,0.1863914]
[1741855621086,0.1207778,82795.0,82794.0,0.2482784]
[1741855621677,0.1207778,82795.0,82794.0,0.1275]
[1741855622676,0.2446778,82795.0,82794.0,0.2482792]
[1741855622988,0.00181248,82807.0,82799.0,0.1207719]
[1741855623283,0.0603838,82802.0,82799.0,0.1207719]
[1741855623485,0.1263,82803.0,82799.0,0.1207719]
[1741855623690,0.2506697,82801.0,82799.0,0.1207719]
[1741855623877,0.1866832,82803.0,82799.0,0.1207719]
[1741855623878,0.1207618,82806.0,82799.0,0.2469719]
[1741855624185,0.0603823,82804.0,82799.0,0.2569719]
[1741855624378,0.2207705,82800.0,82799.0,0.2569719]
[1741855625087,0.2207705,82800.0,82799.0,0.01]
[1741855625274,0.1207778,82796.0,82795.0,0.1207764]
[1741855626276,0.1207778,82796.0,82795.0,0.2469764]
[1741855626987,0.1207778,82796.0,82795.0,0.2569764]
[1741855627179,0.1,82800.0,82797.0,0.1207734]
[1741855627387,0.1,82800.0,82799.0,0.1207719]
[1741855627586,0.2207705,82800.0,82799.0,0.1207719]
[1741855627789,0.2207705,82800.0,82799.0,0.2504719]
[1741855628083,0.1,82800.0,82799.0,0.3204719]
[1741855629186,0.00181248,82807.0,82806.0,0.1207617]
[1741855629389,0.1277,82814.0,82813.0,0.1207515]
[1741855629589,0.2484501,82814.0,82813.0,0.1207515]
[1741855629988,0.3702501,82814.0,82813.0,0.3687515]
[1741855630689,0.1207501,82815.0,82814.0,0.1811236]
[1741855630885,0.1207501,82815.0,82814.0,0.3083749]
[1741855631087,0.1207501,82815.0,82814.0,0.248]
[1741855631388,0.3675501,82815.0,82814.0,0.248]
[1741855631981,0.3675501,82815.0,82805.0,0.00018116]
[1741855631982,0.1207617,82806.0,82805.0,0.00018116]
[1741855632183,0.1207617,82806.0,82805.0,0.13094336]
[1741855632382,0.1207617,82806.0,82805.0,0.00018116]
[1741855632584,0.13299621,82806.0,82805.0,0.00018116]
[1741855633179,0.13299621,82806.0,82805.0,0.12094436]
[1741855633382,0.1207617,82806.0,82805.0,0.12094436]
[1741855633885,0.3786617,82806.0,82805.0,0.12094436]
[1741855634276,0.3786617,82806.0,82805.0,0.36454436]
[1741855635394,0.1207617,82806.0,82805.0,0.36454436]
[1741855636588,0.3721617,82806.0,82805.0,0.24378116]
[1741855636791,0.4918617,82806.0,82805.0,0.00018116]
[1741855638791,0.4918617,82806.0,82805.0,6e-08]
[1741855638995,0.6418617,82806.0,82805.0,6e-08]
[1741855640489,0.4918617,82806.0,82805.0,6e-08]
[1741855643592,0.6221017,82806.0,82805.0,6e-08]
[1741855643797,0.7721017,82806.0,82805.0,6e-08]
[1741855643996,0.1207909,82786.0,82785.0,0.2602]
[1741855644998,0.3631909,82786.0,82785.0,0.2602]
[1741855645296,0.3631909,82786.0,82785.0,0.3809924]
[1741855645498,0.3631909,82786.0,82785.0,0.2602]
[1741855647301,0.3631909,82786.0,82785.0,0.3809924]
[1741855647495,0.2424909,82786.0,82785.0,0.3809924]
[1741855647695,0.1207909,82786.0,82785.0,0.3809924]
[1741855649408,0.1207909,82786.0,82785.0,0.2602]
[1741855649595,0.2452909,82786.0,82785.0,0.2602]
[1741855649996,0.1245,82786.0,82784.0,0.00181178]
[1741855650196,0.2438924,82785.0,82784.0,0.00181178]
[1741855651899,0.2438924,82785.0,82784.0,0.36750558]
[1741855652103,0.1207924,82785.0,82784.0,0.36750558]
[1741855652707,0.1207924,82785.0,82784.0,0.24671178]
[1741855653103,0.0603954,82787.0,82786.0,0.1207909]
[1741855654904,0.1207881,82788.0,82787.0,0.120788]
[1741855655210,0.1207881,82788.0,82787.0,0.728688]
[1741855655408,0.1207862,82790.0,82789.0,0.1207851]
[1741855655608,0.1207862,82790.0,82789.0,0.3774851]
[1741855656209,0.1811789,82790.0,82789.0,0.3774851]
[1741855656408,0.0603914,82792.0,82791.0,0.1207836]
[1741855656910,0.1207851,82790.0,82789.0,0.2567]
[1741855657208,0.26508703,82792.0,82784.0,0.00181178]
[1741855657410,0.1207909,82786.0,82785.0,0.2524]
[1741855657807,0.2502,82787.0,82784.0,0.00181178]
[1741855658002,0.2438924,82785.0,82784.0,0.00181178]
[1741855658811,0.1207997,82780.0,82779.0,0.2524]
[1741855659714,0.3709997,82780.0,82779.0,0.2524]
[1741855661713,0.1207997,82780.0,82779.0,0.3732011]
[1741855661911,0.0603991,82782.0,82779.0,0.3732011]
[1741855662109,0.1264,82788.0,82779.0,0.2524]
[1741855662414,0.1207922,82789.0,82788.0,0.1811783]
[1741855662714,0.1302,82791.0,82790.0,0.1207851]
[1741855663114,0.1207825,82792.0,82791.0,0.1207836]
[1741855663415,0.1207825,82792.0,82791.0,0.2499836]
[1741855663617,0.1207825,82792.0,82791.0,0.3694836]
[1741855663817,0.22806098,82792.0,82791.0,0.3694836]
[1741855664910,0.10727848,82792.0,82791.0,0.6294836]
[1741855665306,0.22806068,82792.0,82791.0,0.6294836]
[1741855665902,0.10727848,82792.0,82791.0,0.6294836]
[1741855666716,0.10727848,82792.0,82791.0,0.6394836]
[1741855667606,0.22806068,82792.0,82791.0,0.6294836]
[1741855668108,0.1207822,82792.0,82791.0,0.6294836]
[1741855671314,0.1207822,82792.0,82791.0,0.5087]
[1741855671520,0.3721822,82792.0,82791.0,0.4987]
[1741855672024,0.383957,82792.0,82791.0,0.2487]
[1741855672219,0.3961139,82792.0,82791.0,0.2487]
[1741855672419,0.383957,82792.0,82791.0,0.3694836]
[1741855672619,0.0117748,82792.0,82791.0,0.3694836]
[1741855672818,0.0117748,82792.0,82791.0,0.3794836]
[1741855673120,0.132557,82792.0,82791.0,0.3794836]
[1741855673313,0.0117748,82792.0,82791.0,0.3794836]
[1741855673920,0.132557,82792.0,82791.0,0.3794836]
[1741855675722,0.132557,82792.0,82791.0,0.5070836]
[1741855678822,0.0117748,82792.0,82791.0,0.5070836]
[1741855679420,0.1207822,82792.0,82791.0,0.5070822]
[1741855680415,0.1223,82793.0,82792.0,0.1207822]
[1741855680616,0.10727848,82810.0,82792.0,0.5074]
[1741855680821,0.060383,82803.0,82802.0,0.1811476]
[1741855681122,0.1223,82809.0,82802.0,0.1811476]
[1741855681123,0.2430578,82809.0,82808.0,0.1207588]
[1741855681319,0.2430578,82809.0,82808.0,0.3707588]
[1741855681537,0.1207578,82809.0,82808.0,0.3707588]
[1741855681735,0.1207578,82809.0,82808.0,0.4932588]
[1741855682037,0.13250792,82809.0,82808.0,0.4932588]
[1741855682828,0.01175012,82809.0,82808.0,0.4932588]
[1741855683724,0.01175012,82809.0,82808.0,0.50528957]
[1741855684024,0.1207501,82814.0,82808.0,0.38453077]
[1741855684335,0.1207501,82814.0,82813.0,0.1207515]
[1741855684534,0.2400501,82814.0,82813.0,0.3807515]
[1741855684724,0.3641501,82814.0,82813.0,0.3807515]
[1741855685333,0.10727848,82822.0,82821.0,0.1207399]
[1741855685628,0.10727848,82822.0,82821.0,0.4307399]